[Event "Schack-SM 2023: Mastarklassen-elit"]
[Site "Helsingborg Arena, Mellersta Stenbocksgatan 14, Helsingborg, Sweden"]
[Date "2023.07.03"]
[Round "3.4"]
[White "Lind, Jan-Olov"]
[Black "Thorn, Eric"]
[Result "0-1"]
[TimeControl "90 minutes for 40 moves + 30 minutes for the rest of games + 30 seconds per move from move one."]
[BlackTitle "FM"]
[WhiteElo "2191"]
[BlackElo "2379"]

1. e4 {[%clk 01:30:55]} {[%emt 00:00:04]} e5 {[%clk 01:30:53]} {[%emt
00:00:07]} 2. Nf3 {[%clk 01:31:18]} {[%emt 00:00:08]} Nc6 {[%clk 01:31:16]}
{[%emt 00:00:07]} 3. Bb5 {[%clk 01:31:22]} {[%emt 00:00:25]} a6 {[%clk
01:31:38]} {[%emt 00:00:08]} 4. Ba4 {[%clk 01:31:47]} {[%emt 00:00:05]} Nf6
{[%clk 01:31:32]} {[%emt 00:00:37]} 5. O-O {[%clk 01:31:58]} {[%emt 00:00:19]}
Be7 {[%clk 01:31:08]} {[%emt 00:00:54]} 6. Bxc6 {[%clk 01:32:07]} {[%emt
00:00:21]} dxc6 {[%clk 01:31:33]} {[%emt 00:00:05]} 7. Re1 {[%clk 01:32:23]}
{[%emt 00:00:14]} Nd7 {[%clk 01:26:48]} {[%emt 00:05:16]} 8. d4 {[%clk
01:32:03]} {[%emt 00:00:49]} exd4 {[%clk 01:25:46]} {[%emt 00:01:32]} 9. Qxd4
{[%clk 01:32:20]} {[%emt 00:00:12]} O-O {[%clk 01:26:03]} {[%emt 00:00:14]} 10.
Bf4 {[%clk 01:32:12]} {[%emt 00:00:38]} Nc5 {[%clk 01:23:59]} {[%emt 00:02:34]}
11. Qe3 {[%clk 01:32:00]} {[%emt 00:00:42]} Ne6 {[%clk 01:22:12]} {[%emt
00:02:17]} 12. Bg3 {[%clk 01:27:33]} {[%emt 00:04:57]} Bc5 {[%clk 01:19:44]}
{[%emt 00:02:58]} 13. Qc3 {[%clk 01:27:40]} {[%emt 00:00:22]} a5 {[%clk
01:11:49]} {[%emt 00:08:25]} 14. Nbd2 {[%clk 01:24:56]} {[%emt 00:03:14]} Bb4
{[%clk 01:07:49]} {[%emt 00:04:30]} 15. Qe3 {[%clk 01:25:05]} {[%emt 00:00:21]}
Bc5 {[%clk 01:02:49]} {[%emt 00:05:31]} 16. Qc3 {[%clk 01:20:43]} {[%emt
00:04:51]} f6 {[%clk 00:42:07]} {[%emt 00:21:13]} 17. Rad1 {[%clk 01:12:05]}
{[%emt 00:09:07]} Qe8 {[%clk 00:41:30]} {[%emt 00:01:06]} 18. a3 {[%clk
01:11:05]} {[%emt 00:01:32]} Qf7 {[%clk 00:30:57]} {[%emt 00:11:03]} 19. Nb3
{[%clk 01:00:00]} {[%emt 00:11:35]} Bb6 {[%clk 00:30:55]} {[%emt 00:00:32]} 20.
a4 {[%clk 00:56:38]} {[%emt 00:03:52]} Re8 {[%clk 00:28:36]} {[%emt 00:02:49]}
21. Kh1 {[%clk 00:52:01]} {[%emt 00:05:06]} Nf8 {[%clk 00:24:55]} {[%emt
00:04:11]} 22. Nfd4 {[%clk 00:45:11]} {[%emt 00:07:20]} Qh5 {[%clk 00:19:14]}
{[%emt 00:06:12]} 23. f3 {[%clk 00:42:59]} {[%emt 00:02:41]} Kh8 {[%clk
00:18:06]} {[%emt 00:01:39]} 24. Ne2 {[%clk 00:22:51]} {[%emt 00:20:37]} Ng6
{[%clk 00:17:39]} {[%emt 00:00:57]} 25. Nf4 {[%clk 00:21:42]} {[%emt 00:01:39]}
Qh6 {[%clk 00:15:59]} {[%emt 00:02:10]} 26. Nd3 {[%clk 00:19:08]} {[%emt
00:03:04]} Qg5 {[%clk 00:11:31]} {[%emt 00:04:58]} 27. Qd2 {[%clk 00:17:37]}
{[%emt 00:02:01]} Qh5 {[%clk 00:10:25]} {[%emt 00:01:37]} 28. Nf4 {[%clk
00:16:43]} {[%emt 00:01:23]} Nxf4 {[%clk 00:10:23]} {[%emt 00:00:33]} 29. Bxf4
{[%clk 00:16:56]} {[%emt 00:00:16]} Be6 {[%clk 00:06:22]} {[%emt 00:04:30]} 30.
Be3 {[%clk 00:16:01]} {[%emt 00:01:26]} Bxb3 {[%clk 00:05:20]} {[%emt
00:01:31]} 31. cxb3 {[%clk 00:15:53]} {[%emt 00:00:39]} Qf7 {[%clk 00:05:31]}
{[%emt 00:00:19]} 32. Bxb6 {[%clk 00:14:16]} {[%emt 00:02:08]} cxb6 {[%clk
00:05:57]} {[%emt 00:00:04]} 33. Re3 {[%clk 00:12:42]} {[%emt 00:02:03]} h6
{[%clk 00:03:58]} {[%emt 00:02:30]} 34. Rd3 {[%clk 00:08:12]} {[%emt 00:04:59]}
Kh7 {[%clk 00:03:00]} {[%emt 00:01:28]} 35. Qc2 {[%clk 00:07:49]} {[%emt
00:00:54]} Re7 {[%clk 00:00:42]} {[%emt 00:02:48]} 36. Qc4 {[%clk 00:03:56]}
{[%emt 00:04:22]} Qh5 {[%clk 00:00:34]} {[%emt 00:00:39]} 37. Rd7 {[%clk
00:03:12]} {[%emt 00:01:13]} Rae8 {[%clk 00:00:43]} {[%emt 00:00:21]} 38. Rxe7
{[%clk 00:02:57]} {[%emt 00:00:46]} Rxe7 {[%clk 00:01:09]} {[%emt 00:00:04]} 39.
Qd3 {[%clk 00:02:37]} {[%emt 00:00:50]} Qe5 {[%clk 00:01:00]} {[%emt 00:00:38]}
40. Qc3 {[%clk 00:00:49]} {[%emt 00:02:17]} Qe6 {[%clk 00:00:40]} {[%emt
00:00:51]} 41. Qd3 {[%clk 00:29:43]} {[%emt 00:01:36]} f5 {[%clk 00:20:32]}
{[%emt 00:10:38]} 42. Re1 {[%clk 00:23:23]} {[%emt 00:06:49]} Rd7 {[%clk
00:20:46]} {[%emt 00:00:17]} 43. Qc2 {[%clk 00:23:18]} {[%emt 00:00:35]} Qe5
{[%clk 00:18:12]} {[%emt 00:03:04]} 44. h3 {[%clk 00:21:08]} {[%emt 00:02:40]}
f4 {[%clk 00:05:33]} {[%emt 00:13:09]} 45. Re2 {[%clk 00:18:00]} {[%emt
00:03:38]} b5 {[%clk 00:02:13]} {[%emt 00:03:50]} 46. Rd2 {[%clk 00:14:44]}
{[%emt 00:03:46]} Rxd2 {[%clk 00:02:04]} {[%emt 00:00:40]} 47. Qxd2 {[%clk
00:15:07]} {[%emt 00:00:06]} bxa4 {[%clk 00:01:15]} {[%emt 00:01:20]} 48. bxa4
{[%clk 00:15:28]} {[%emt 00:00:09]} b5 {[%clk 00:00:43]} {[%emt 00:01:01]} 49.
b3 {[%clk 00:11:00]} {[%emt 00:04:59]} bxa4 {[%clk 00:00:50]} {[%emt 00:00:23]}
50. bxa4 {[%clk 00:11:24]} {[%emt 00:00:06]} Qa1+ {[%clk 00:00:33]} {[%emt
00:00:46]} 51. Kh2 {[%clk 00:11:47]} {[%emt 00:00:07]} Qxa4 {[%clk 00:00:57]}
{[%emt 00:00:06]} 52. Qxf4 {[%clk 00:12:02]} {[%emt 00:00:16]} Qb5 {[%clk
00:00:38]} {[%emt 00:00:49]} 53. e5 {[%clk 00:11:56]} {[%emt 00:00:35]} Qd5
{[%clk 00:00:42]} {[%emt 00:00:25]} 54. Qf5+ {[%clk 00:11:06]} {[%emt
00:01:21]} Kg8 {[%clk 00:01:07]} {[%emt 00:00:06]} 55. f4 {[%clk 00:10:21]}
{[%emt 00:01:15]} a4 {[%clk 00:00:56]} {[%emt 00:00:41]} 56. Qc8+ {[%clk
00:09:50]} {[%emt 00:01:01]} Kh7 {[%clk 00:01:21]} {[%emt 00:00:05]} 57. e6
{[%clk 00:08:45]} {[%emt 00:01:34]} Qe4 {[%clk 00:01:40]} {[%emt 00:00:11]} 58.
f5 {[%clk 00:02:58]} {[%emt 00:06:17]} a3 {[%clk 00:01:10]} {[%emt 00:01:01]}
59. Qe8 {[%clk 00:00:57]} {[%emt 00:02:31]} Qxf5 {[%clk 00:01:20]} {[%emt
00:00:20]} 60. Qxc6 {[%clk 00:00:42]} {[%emt 00:00:44]} a2 {[%clk 00:01:43]}
{[%emt 00:00:07]} 61. Qa6 {[%clk 00:00:43]} {[%emt 00:00:29]} Qe5+ {[%clk
00:02:08]} {[%emt 00:00:05]} 62. g3 {[%clk 00:01:04]} {[%emt 00:00:08]} a1=Q
{[%clk 00:02:32]} {[%emt 00:00:06]} 0-1

[Event "Schack-SM 2023: Mastarklassen"]
[Site "Helsingborg Arena, Mellersta Stenbocksgatan 14, Helsingborg, Sweden"]
[Date "2023.07.03"]
[Round "3.2"]
[White "Franzen, Per-Erik"]
[Black "Mardell, Jimmy"]
[Result "1/2-1/2"]
[TimeControl "90 minutes for 40 moves + 30 minutes for the rest of games + 30 seconds per move from move one."]
[WhiteElo "2025"]
[BlackElo "2160"]

1. d4 {[%clk 01:30:57]} {[%emt 00:00:02]} d5 {[%clk 01:30:52]} {[%emt
00:00:09]} 2. Nf3 {[%clk 01:31:07]} {[%emt 00:00:19]} Nf6 {[%clk 01:31:14]}
{[%emt 00:00:08]} 3. c4 {[%clk 01:31:08]} {[%emt 00:00:30]} c6 {[%clk
01:31:31]} {[%emt 00:00:14]} 4. e3 {[%clk 01:31:21]} {[%emt 00:00:16]} Bf5
{[%clk 01:31:39]} {[%emt 00:00:22]} 5. Bd3 {[%clk 01:31:43]} {[%emt 00:00:08]}
Bxd3 {[%clk 01:31:25]} {[%emt 00:00:44]} 6. Qxd3 {[%clk 01:31:56]} {[%emt
00:00:17]} e6 {[%clk 01:31:45]} {[%emt 00:00:10]} 7. O-O {[%clk 01:29:30]}
{[%emt 00:02:55]} Be7 {[%clk 01:31:44]} {[%emt 00:00:32]} 8. b3 {[%clk
01:27:34]} {[%emt 00:02:26]} O-O {[%clk 01:30:49]} {[%emt 00:01:25]} 9. Bb2
{[%clk 01:26:57]} {[%emt 00:01:06]} Nbd7 {[%clk 01:23:50]} {[%emt 00:07:30]} 10.
Nbd2 {[%clk 01:26:33]} {[%emt 00:00:54]} a5 {[%clk 01:14:41]} {[%emt 00:09:39]}
11. Rfd1 {[%clk 01:11:46]} {[%emt 00:15:17]} a4 {[%clk 01:10:28]} {[%emt
00:04:43]} 12. e4 {[%clk 00:59:34]} {[%emt 00:12:41]} dxe4 {[%clk 01:03:44]}
{[%emt 00:07:14]} 13. Nxe4 {[%clk 00:59:49]} {[%emt 00:00:16]} Nxe4 {[%clk
01:04:11]} {[%emt 00:00:03]} 14. Qxe4 {[%clk 01:00:03]} {[%emt 00:00:15]} Nf6
{[%clk 01:04:36]} {[%emt 00:00:06]} 15. Qc2 {[%clk 00:54:26]} {[%emt 00:06:06]}
Qc7 {[%clk 00:55:44]} {[%emt 00:09:22]} 16. Ne5 {[%clk 00:41:32]} {[%emt
00:13:24]} c5 {[%clk 00:47:30]} {[%emt 00:08:45]} 17. dxc5 {[%clk 00:24:37]}
{[%emt 00:17:24]} Bxc5 {[%clk 00:47:37]} {[%emt 00:00:23]} 18. Nd3 {[%clk
00:18:26]} {[%emt 00:06:41]} axb3 {[%clk 00:28:48]} {[%emt 00:19:20]} 19. axb3
{[%clk 00:18:37]} {[%emt 00:00:17]} Rxa1 {[%clk 00:29:14]} {[%emt 00:00:06]} 20.
Bxa1 {[%clk 00:17:24]} {[%emt 00:01:43]} Be7 {[%clk 00:29:36]} {[%emt
00:00:08]} 21. Be5 {[%clk 00:12:26]} {[%emt 00:05:28]} Qc6 {[%clk 00:27:14]}
{[%emt 00:02:52]} 22. Qe2 {[%clk 00:07:06]} {[%emt 00:05:50]} h6 {[%clk
00:22:05]} {[%emt 00:05:39]} 23. h3 {[%clk 00:06:44]} {[%emt 00:00:51]} Ra8
{[%clk 00:18:19]} {[%emt 00:04:16]} 24. Bc3 {[%clk 00:05:33]} {[%emt 00:01:42]}
Qe4 {[%clk 00:10:05]} {[%emt 00:08:44]} 25. Kf1 {[%clk 00:03:09]} {[%emt
00:02:53]} Ra3 {[%clk 00:06:09]} {[%emt 00:04:26]} 26. Rb1 {[%clk 00:02:56]}
{[%emt 00:00:44]} Qf5 {[%clk 00:05:38]} {[%emt 00:01:01]} 27. Qd1 {[%clk
00:02:09]} {[%emt 00:01:17]} Ne4 {[%clk 00:04:57]} {[%emt 00:01:11]} 28. Be1
{[%clk 00:02:14]} {[%emt 00:00:24]} Ra2 {[%clk 00:03:55]} {[%emt 00:01:33]} 29.
Rb2 {[%clk 00:01:59]} {[%emt 00:00:45]} Rxb2 {[%clk 00:03:15]} {[%emt
00:01:10]} 30. Nxb2 {[%clk 00:02:27]} {[%emt 00:00:01]} Nc5 {[%clk 00:01:27]}
{[%emt 00:02:19]} 31. Bc3 {[%clk 00:01:55]} {[%emt 00:01:02]} Ne4 {[%clk
00:01:09]} {[%emt 00:00:48]} 32. Be1 {[%clk 00:02:01]} {[%emt 00:00:23]} Qe5
{[%clk 00:01:32]} {[%emt 00:00:07]} 33. Qe2 {[%clk 00:01:26]} {[%emt 00:01:05]}
Qd4 {[%clk 00:00:53]} {[%emt 00:01:09]} 34. Nd1 {[%clk 00:00:59]} {[%emt
00:00:58]} Bc5 {[%clk 00:00:59]} {[%emt 00:00:23]} 35. Ne3 {[%clk 00:01:00]}
{[%emt 00:00:29]} Qf6 {[%clk 00:00:40]} {[%emt 00:00:50]} 36. Kg1 {[%clk
00:01:05]} {[%emt 00:00:25]} Bxe3 {[%clk 00:00:47]} {[%emt 00:00:23]} 37. Qxe3
{[%clk 00:01:01]} {[%emt 00:00:33]} Qf5 {[%clk 00:01:04]} {[%emt 00:00:14]} 38.
Bb4 {[%clk 00:00:48]} {[%emt 00:00:43]} h5 {[%clk 00:01:12]} {[%emt 00:00:22]}
39. Be7 {[%clk 00:00:46]} {[%emt 00:00:32]} g6 {[%clk 00:00:38]} {[%emt
00:01:05]} 40. g3 {[%clk 00:00:55]} {[%emt 00:00:20]} Kh7 {[%clk 00:00:38]}
{[%emt 00:00:29]} 41. Kg2 {[%clk 00:25:56]} {[%emt 00:05:29]} 1/2-1/2

[Event "Schack-SM 2023: Mastarklassen-elit"]
[Site "Helsingborg Arena, Mellersta Stenbocksgatan 14, Helsingborg, Sweden"]
[Date "2023.07.03"]
[Round "3.5"]
[White "Crevatin, Leo"]
[Black "Walinder, Lars"]
[Result "1/2-1/2"]
[TimeControl "90 minutes for 40 moves + 30 minutes for the rest of games + 30 seconds per move from move one."]
[WhiteTitle "FM"]
[BlackTitle "FM"]
[WhiteElo "2265"]
[BlackElo "2310"]

1. d4 {[%clk 01:30:57]} {[%emt 00:00:01]} Nf6 {[%clk 01:30:53]} {[%emt
00:00:07]} 2. c4 {[%clk 01:31:20]} {[%emt 00:00:07]} e6 {[%clk 01:30:49]}
{[%emt 00:00:34]} 3. g3 {[%clk 01:31:43]} {[%emt 00:00:08]} Bb4+ {[%clk
01:30:35]} {[%emt 00:00:44]} 4. Bd2 {[%clk 01:31:19]} {[%emt 00:00:54]} Be7
{[%clk 01:29:51]} {[%emt 00:01:13]} 5. Bg2 {[%clk 01:29:33]} {[%emt 00:02:16]}
d5 {[%clk 01:27:42]} {[%emt 00:02:40]} 6. Nf3 {[%clk 01:29:03]} {[%emt
00:01:00]} O-O {[%clk 01:28:03]} {[%emt 00:00:09]} 7. Qc2 {[%clk 01:29:01]}
{[%emt 00:00:31]} c6 {[%clk 01:27:25]} {[%emt 00:01:09]} 8. h4 {[%clk
01:28:46]} {[%emt 00:00:44]} Nbd7 {[%clk 01:26:00]} {[%emt 00:01:55]} 9. Nc3
{[%clk 01:27:32]} {[%emt 00:01:45]} b6 {[%clk 01:19:38]} {[%emt 00:06:52]} 10.
e4 {[%clk 01:22:14]} {[%emt 00:05:48]} dxe4 {[%clk 01:14:30]} {[%emt 00:05:37]}
11. Nxe4 {[%clk 01:22:34]} {[%emt 00:00:10]} Bb7 {[%clk 01:12:36]} {[%emt
00:02:25]} 12. Ne5 {[%clk 01:07:35]} {[%emt 00:15:28]} Qc8 {[%clk 00:35:00]}
{[%emt 00:38:07]} 13. Nxd7 {[%clk 00:41:50]} {[%emt 00:26:14]} Qxd7 {[%clk
00:34:34]} {[%emt 00:00:56]} 14. Bc3 {[%clk 00:41:41]} {[%emt 00:00:40]} c5
{[%clk 00:32:04]} {[%emt 00:03:00]} 15. dxc5 {[%clk 00:39:51]} {[%emt
00:02:19]} Nxe4 {[%clk 00:27:22]} {[%emt 00:05:13]} 16. Bxe4 {[%clk 00:40:06]}
{[%emt 00:00:14]} Bxe4 {[%clk 00:27:03]} {[%emt 00:00:50]} 17. Qxe4 {[%clk
00:40:29]} {[%emt 00:00:07]} Bxc5 {[%clk 00:25:30]} {[%emt 00:02:03]} 18. Rd1
{[%clk 00:36:36]} {[%emt 00:04:22]} Qe7 {[%clk 00:24:41]} {[%emt 00:01:20]} 19.
O-O {[%clk 00:34:14]} {[%emt 00:02:51]} Rad8 {[%clk 00:24:01]} {[%emt
00:01:11]} 20. Qf3 {[%clk 00:27:04]} {[%emt 00:07:40]} h6 {[%clk 00:14:47]}
{[%emt 00:09:44]} 21. b3 {[%clk 00:24:24]} {[%emt 00:03:10]} a5 {[%clk
00:12:57]} {[%emt 00:02:20]} 22. Rxd8 {[%clk 00:17:43]} {[%emt 00:07:10]} Rxd8
{[%clk 00:13:18]} {[%emt 00:00:09]} 23. Rd1 {[%clk 00:17:46]} {[%emt 00:00:27]}
Rxd1+ {[%clk 00:08:22]} {[%emt 00:05:26]} 24. Qxd1 {[%clk 00:18:10]} {[%emt
00:00:06]} e5 {[%clk 00:07:35]} {[%emt 00:01:18]} 25. Kg2 {[%clk 00:12:01]}
{[%emt 00:06:39]} Bd4 {[%clk 00:04:52]} {[%emt 00:03:13]} 26. Bxd4 {[%clk
00:10:40]} {[%emt 00:01:50]} Qd7 {[%clk 00:04:05]} {[%emt 00:01:18]} 27. Qf3
{[%clk 00:10:10]} {[%emt 00:00:59]} Qxd4 {[%clk 00:02:44]} {[%emt 00:01:52]} 28.
h5 {[%clk 00:07:18]} {[%emt 00:03:20]} 1/2-1/2

[Event "Schack-SM 2023: Mastarklassen"]
[Site "Helsingborg Arena, Mellersta Stenbocksgatan 14, Helsingborg, Sweden"]
[Date "2023.07.03"]
[Round "3.3"]
[White "Nygren, David"]
[Black "Sundin, Emanuel"]
[Result "1-0"]
[TimeControl "90 minutes for 40 moves + 30 minutes for the rest of games + 30 seconds per move from move one."]
[WhiteElo "2157"]
[BlackElo "2103"]

1. e4 {[%clk 01:30:54]} {[%emt 00:00:05]} c5 {[%clk 01:30:50]} {[%emt
00:00:10]} 2. c3 {[%clk 01:31:12]} {[%emt 00:00:13]} d5 {[%clk 01:30:41]}
{[%emt 00:00:38]} 3. exd5 {[%clk 01:31:34]} {[%emt 00:00:09]} Nf6 {[%clk
01:29:33]} {[%emt 00:01:38]} 4. Qa4+ {[%clk 01:31:14]} {[%emt 00:00:51]} Nbd7
{[%clk 01:28:08]} {[%emt 00:01:53]} 5. c4 {[%clk 01:30:31]} {[%emt 00:01:14]}
b5 {[%clk 01:28:10]} {[%emt 00:00:27]} 6. Qxb5 {[%clk 01:24:57]} {[%emt
00:06:04]} Rb8 {[%clk 01:27:51]} {[%emt 00:00:50]} 7. Qa4 {[%clk 01:24:17]}
{[%emt 00:01:09]} e6 {[%clk 01:28:05]} {[%emt 00:00:16]} 8. dxe6 {[%clk
01:21:19]} {[%emt 00:03:29]} fxe6 {[%clk 01:28:27]} {[%emt 00:00:08]} 9. Nf3
{[%clk 01:16:35]} {[%emt 00:05:15]} Bd6 {[%clk 01:25:05]} {[%emt 00:03:51]} 10.
Nc3 {[%clk 01:14:56]} {[%emt 00:02:08]} O-O {[%clk 01:25:10]} {[%emt 00:00:25]}
11. Be2 {[%clk 01:11:10]} {[%emt 00:04:17]} Bb7 {[%clk 01:25:14]} {[%emt
00:00:26]} 12. d3 {[%clk 01:09:23]} {[%emt 00:02:17]} Ng4 {[%clk 01:25:05]}
{[%emt 00:00:38]} 13. Bg5 {[%clk 01:03:31]} {[%emt 00:06:22]} Qe8 {[%clk
01:12:16]} {[%emt 00:13:20]} 14. Bh4 {[%clk 00:52:40]} {[%emt 00:11:20]} Bxf3
{[%clk 00:57:34]} {[%emt 00:15:12]} 15. Bxf3 {[%clk 00:44:07]} {[%emt
00:09:03]} Rxf3 {[%clk 00:42:25]} {[%emt 00:15:39]} 16. gxf3 {[%clk 00:43:27]}
{[%emt 00:01:10]} Nge5 {[%clk 00:42:43]} {[%emt 00:00:12]} 17. O-O-O {[%clk
00:41:01]} {[%emt 00:02:57]} Qh5 {[%clk 00:34:29]} {[%emt 00:08:44]} 18. Bg3
{[%clk 00:37:48]} {[%emt 00:03:42]} Qxf3 {[%clk 00:34:14]} {[%emt 00:00:45]} 19.
Nb5 {[%clk 00:35:44]} {[%emt 00:02:35]} Be7 {[%clk 00:31:30]} {[%emt 00:03:14]}
20. Qc2 {[%clk 00:33:24]} {[%emt 00:02:49]} Rb6 {[%clk 00:27:09]} {[%emt
00:04:53]} 21. Rhe1 {[%clk 00:31:30]} {[%emt 00:02:22]} Nc6 {[%clk 00:22:32]}
{[%emt 00:05:07]} 22. Qe2 {[%clk 00:28:58]} {[%emt 00:03:03]} Bg5+ {[%clk
00:21:01]} {[%emt 00:02:00]} 23. Kb1 {[%clk 00:28:47]} {[%emt 00:00:42]} Qxe2
{[%clk 00:19:21]} {[%emt 00:02:09]} 24. Rxe2 {[%clk 00:29:05]} {[%emt
00:00:11]} a6 {[%clk 00:19:46]} {[%emt 00:00:07]} 25. Bc7 {[%clk 00:26:34]}
{[%emt 00:03:01]} Rb7 {[%clk 00:14:56]} {[%emt 00:05:19]} 26. Rxe6 {[%clk
00:26:43]} {[%emt 00:00:21]} Nb4 {[%clk 00:13:04]} {[%emt 00:02:22]} 27. Re8+
{[%clk 00:26:34]} {[%emt 00:00:39]} Nf8 {[%clk 00:08:22]} {[%emt 00:05:13]} 28.
Bd6 {[%clk 00:26:30]} {[%emt 00:00:33]} axb5 {[%clk 00:08:13]} {[%emt
00:00:40]} 29. Rxf8# {[%emt 00:00:11]} 1-0

[Event "Schack-SM 2023: Mastarklassen"]
[Site "Helsingborg Arena, Mellersta Stenbocksgatan 14, Helsingborg, Sweden"]
[Date "2023.07.03"]
[Round "3.4"]
[White "Cederstam, Carl"]
[Black "Mashhadi, Peyman"]
[Result "1-0"]
[TimeControl "90 minutes for 40 moves + 30 minutes for the rest of games + 30 seconds per move from move one."]
[WhiteTitle "FM"]
[WhiteElo "2196"]
[BlackElo "2117"]

1. c4 {[%clk 01:30:56]} {[%emt 00:00:04]} Nf6 {[%clk 01:30:27]} {[%emt
00:00:33]} 2. g3 {[%clk 01:31:16]} {[%emt 00:00:10]} g6 {[%clk 01:30:46]}
{[%emt 00:00:11]} 3. Bg2 {[%clk 01:31:40]} {[%emt 00:00:05]} Bg7 {[%clk
01:31:12]} {[%emt 00:00:04]} 4. Nc3 {[%clk 01:32:04]} {[%emt 00:00:07]} d6
{[%clk 01:30:44]} {[%emt 00:00:57]} 5. d4 {[%clk 01:32:06]} {[%emt 00:00:27]}
O-O {[%clk 01:30:42]} {[%emt 00:00:33]} 6. h3 {[%clk 01:32:07]} {[%emt
00:00:30]} e5 {[%clk 01:22:59]} {[%emt 00:08:13]} 7. Nf3 {[%clk 01:31:27]}
{[%emt 00:01:10]} Qe7 {[%clk 01:14:54]} {[%emt 00:08:35]} 8. Bg5 {[%clk
01:26:25]} {[%emt 00:05:30]} c6 {[%clk 01:11:22]} {[%emt 00:04:03]} 9. Qd2
{[%clk 01:13:58]} {[%emt 00:12:57]} exd4 {[%clk 00:56:37]} {[%emt 00:15:16]} 10.
Nxd4 {[%clk 01:08:52]} {[%emt 00:05:35]} Nbd7 {[%clk 00:55:00]} {[%emt
00:02:07]} 11. O-O {[%clk 01:05:39]} {[%emt 00:03:43]} Re8 {[%clk 00:51:15]}
{[%emt 00:04:15]} 12. Rad1 {[%clk 01:00:00]} {[%emt 00:06:10]} Nc5 {[%clk
00:50:08]} {[%emt 00:01:37]} 13. e4 {[%clk 00:53:14]} {[%emt 00:07:15]} Bd7
{[%clk 00:40:37]} {[%emt 00:10:02]} 14. Rfe1 {[%clk 00:53:08]} {[%emt
00:00:34]} Rad8 {[%clk 00:38:51]} {[%emt 00:02:18]} 15. Qc1 {[%clk 00:34:22]}
{[%emt 00:19:15]} Qf8 {[%clk 00:35:20]} {[%emt 00:04:02]} 16. Nb3 {[%clk
00:09:03]} {[%emt 00:25:49]} Ne6 {[%clk 00:22:10]} {[%emt 00:13:39]} 17. Be3
{[%clk 00:09:32]} {[%emt 00:00:02]} Nc5 {[%clk 00:17:12]} {[%emt 00:05:28]} 18.
Nxc5 {[%clk 00:07:28]} {[%emt 00:02:33]} dxc5 {[%clk 00:17:24]} {[%emt
00:00:18]} 19. f4 {[%clk 00:07:05]} {[%emt 00:00:53]} Be6 {[%clk 00:14:36]}
{[%emt 00:03:18]} 20. e5 {[%clk 00:05:36]} {[%emt 00:02:00]} Rxd1 {[%clk
00:11:28]} {[%emt 00:03:38]} 21. Rxd1 {[%clk 00:05:02]} {[%emt 00:01:04]} Nd7
{[%clk 00:11:22]} {[%emt 00:00:35]} 22. Ne4 {[%clk 00:04:30]} {[%emt 00:01:02]}
f6 {[%clk 00:09:12]} {[%emt 00:02:40]} 23. exf6 {[%clk 00:03:17]} {[%emt
00:01:43]} Bxf6 {[%clk 00:09:24]} {[%emt 00:00:19]} 24. Nxf6+ {[%clk 00:02:56]}
{[%emt 00:00:51]} Nxf6 {[%clk 00:07:16]} {[%emt 00:02:37]} 25. g4 {[%clk
00:02:39]} {[%emt 00:00:48]} Qe7 {[%clk 00:05:06]} {[%emt 00:02:39]} 26. Bf2
{[%clk 00:02:35]} {[%emt 00:00:34]} Rd8 {[%clk 00:03:16]} {[%emt 00:02:21]} 27.
Re1 {[%clk 00:02:43]} {[%emt 00:00:21]} Qd6 {[%clk 00:02:07]} {[%emt 00:01:38]}
28. b3 {[%clk 00:02:32]} {[%emt 00:00:43]} Bf7 {[%clk 00:01:58]} {[%emt
00:00:39]} 29. f5 {[%clk 00:00:57]} {[%emt 00:02:05]} Qd2 {[%clk 00:01:06]}
{[%emt 00:01:22]} 30. Bh4 {[%clk 00:00:45]} {[%emt 00:00:41]} Qd4+ {[%clk
00:00:56]} {[%emt 00:00:41]} 31. Kh1 {[%clk 00:00:59]} {[%emt 00:00:15]} Re8
{[%clk 00:00:40]} {[%emt 00:00:46]} 32. Rxe8+ {[%clk 00:01:06]} {[%emt
00:00:24]} Bxe8 {[%clk 00:00:35]} {[%emt 00:00:35]} 33. Qe1 {[%clk 00:01:25]}
{[%emt 00:00:10]} Bf7 {[%clk 00:00:35]} {[%emt 00:00:31]} 34. Qe7 {[%clk
00:01:12]} {[%emt 00:00:42]} Ne8 {[%clk 00:00:48]} {[%emt 00:00:17]} 35. Bg3
{[%clk 00:01:11]} {[%emt 00:00:31]} Qf6 {[%clk 00:00:34]} {[%emt 00:00:45]} 36.
Qxb7 {[%clk 00:00:44]} {[%emt 00:00:56]} gxf5 {[%clk 00:00:51]} {[%emt
00:00:14]} 37. Qxc6 {[%clk 00:00:44]} {[%emt 00:00:30]} Qa1+ {[%clk 00:00:49]}
{[%emt 00:00:32]} 38. Kh2 {[%clk 00:01:10]} {[%emt 00:00:04]} fxg4 {[%clk
00:00:46]} {[%emt 00:00:33]} 39. hxg4 {[%clk 00:01:39]} Qxa2 {[%clk 00:00:49]}
{[%emt 00:00:28]} 40. Qxc5 {[%clk 00:00:45]} {[%emt 00:01:23]} Qxb3 {[%clk
00:00:36]} {[%emt 00:00:43]} 41. Qg5+ {[%clk 00:28:01]} {[%emt 00:03:12]} Kf8
{[%clk 00:27:18]} {[%emt 00:03:49]} 42. Bf2 {[%clk 00:22:10]} {[%emt 00:06:21]}
Qb8+ {[%clk 00:25:22]} {[%emt 00:02:27]} 43. Kh3 {[%clk 00:18:28]} {[%emt
00:04:11]} Ng7 {[%clk 00:21:10]} {[%emt 00:04:42]} 44. Bc5+ {[%clk 00:18:23]}
{[%emt 00:00:36]} Kg8 {[%clk 00:21:08]} {[%emt 00:00:31]} 45. Bd4 {[%clk
00:18:29]} {[%emt 00:00:23]} Qf8 {[%clk 00:21:00]} {[%emt 00:00:40]} 46. c5
{[%clk 00:17:47]} {[%emt 00:01:12]} Be6 {[%clk 00:19:59]} {[%emt 00:01:31]} 47.
c6 {[%clk 00:14:13]} {[%emt 00:04:04]} h5 {[%clk 00:18:57]} {[%emt 00:01:31]}
48. Kh2 {[%clk 00:06:31]} {[%emt 00:08:12]} hxg4 {[%clk 00:16:52]} {[%emt
00:02:35]} 49. c7 {[%clk 00:06:11]} {[%emt 00:00:50]} Qf7 {[%clk 00:09:43]}
{[%emt 00:07:39]} 50. c8=Q+ {[%clk 00:05:49]} {[%emt 00:00:52]} 1-0